bitfinex-derivatives/quotes_BTCF0:USTF0_20250114
["timestamp","ask_amount","ask_price","bid_price","bid_amount"]
[1736855701022,0.31005174,96653.0,96646.0,0.001]
[1736855702025,0.40538356,96653.0,96646.0,0.001]
[1736855702714,0.40538356,96653.0,96645.0,0.3608]
[1736855702915,0.40538356,96653.0,96645.0,0.3618]
[1736855703122,0.051758,96646.0,96633.0,0.3608]
[1736855703317,0.3608,96650.0,96633.0,0.3608]
[1736855703318,0.13510908,96643.0,96633.0,0.3608]
[1736855703620,0.05276,96642.0,96633.0,0.3608]
[1736855703827,0.3608,96640.0,96632.0,0.0493]
[1736855704523,0.20773751,96642.0,96632.0,0.4101]
[1736855704726,0.27529205,96642.0,96632.0,0.4101]
[1736855705121,0.20673751,96639.0,96632.0,0.4101]
[1736855705924,0.20673751,96641.0,96632.0,0.4101]
[1736855706626,0.001,96639.0,96632.0,0.4101]
[1736855707014,0.24111701,96641.0,96632.0,0.4101]
[1736855707220,0.24311701,96641.0,96632.0,0.4101]
[1736855707618,0.24111701,96641.0,96632.0,0.4101]
[1736855707821,0.34090155,96633.0,96632.0,0.4101]
[1736855708924,0.43623337,96633.0,96632.0,0.4101]
[1736855710031,0.34090155,96633.0,96632.0,0.4101]
[1736855710726,0.34190155,96633.0,96632.0,0.4101]
[1736855712227,0.18092082,96633.0,96632.0,0.4101]
[1736855716823,0.18092082,96633.0,96632.0,0.0493]
[1736855724525,0.0963465,96633.0,96632.0,0.0493]
[1736855726729,0.001,96633.0,96632.0,0.0493]
[1736855734934,0.09634654,96633.0,96632.0,0.0493]
[1736855741845,0.052765,96633.0,96632.0,0.0493]
[1736855742848,0.07244361,96637.0,96632.0,0.0493]
[1736855743642,0.051765,96633.0,96632.0,0.0493]
[1736855748637,0.07244361,96637.0,96632.0,0.0493]
[1736855748843,0.03522189,96642.0,96636.0,0.3608]
[1736855749043,0.05176,96643.0,96637.0,0.047]
[1736855749450,0.051761,96642.0,96637.0,0.047]
[1736855749652,0.051755,96653.0,96637.0,0.047]
[1736855749953,0.051754,96653.0,96644.0,0.3608]
[1736855750348,0.051759,96645.0,96644.0,0.3608]
[1736855752352,0.051759,96645.0,96644.0,0.3618]
[1736855754551,0.12728224,96654.0,96644.0,0.3618]
[1736855754756,0.051757,96649.0,96644.0,0.42935454]
[1736855754944,0.051757,96649.0,96644.0,0.3618]
[1736855755345,0.12728224,96654.0,96644.0,0.3618]
[1736855755547,0.051757,96648.0,96644.0,0.3618]
[1736855756255,0.051758,96647.0,96644.0,0.3618]
[1736855756441,0.051758,96646.0,96644.0,0.3618]
[1736855757447,0.05163048,96654.0,96644.0,0.3618]
[1736855757653,0.051754,96654.0,96653.0,0.3608]
[1736855759256,0.051754,96654.0,96653.0,0.3618]
[1736855759651,0.10437796,96669.0,96653.0,0.3618]
[1736855759959,0.051752,96658.0,96654.0,0.1466]
[1736855760950,0.051753,96655.0,96654.0,0.1466]
[1736855761547,0.051753,96655.0,96654.0,0.1476]
[1736855761946,0.051753,96655.0,96654.0,0.1466]
[1736855762259,0.051753,96655.0,96654.0,0.1476]
[1736855764255,0.10367749,96658.0,96654.0,0.1476]
[1736855764456,0.05192549,96658.0,96654.0,0.1476]
[1736855764758,0.051753,96655.0,96654.0,0.1476]
[1736855765548,0.051753,96655.0,96654.0,0.1466]
[1736855765754,0.051753,96655.0,96654.0,0.1476]
[1736855767561,0.051753,96655.0,96654.0,0.0979]
[1736855769766,0.051753,96655.0,96654.0,0.4587]
[1736855772164,0.00273197,96663.0,96654.0,0.4587]
[1736855772365,0.05208721,96663.0,96662.0,0.3608]
[1736855772661,0.05208721,96663.0,96637.0,0.01533584]
[1736855772662,0.051765,96634.0,96621.0,0.3608]
[1736855772850,0.051765,96634.0,96624.0,0.0499]
[1736855775363,0.10411117,96634.0,96624.0,0.0499]
[1736855775561,0.10511117,96634.0,96624.0,0.0499]
[1736855781459,0.10511117,96634.0,96622.0,0.0491]
[1736855781874,0.10511117,96634.0,96621.0,0.3608]
[1736855788274,0.051774,96616.0,96615.0,0.0488]
[1736855788471,0.051775,96614.0,96603.0,0.05182091]
[1736855788674,0.051775,96614.0,96604.0,0.0498]
[1736855789678,0.051771,96623.0,96613.0,0.3628]
[1736855789876,0.051775,96614.0,96613.0,0.3628]
[1736855791378,0.051775,96614.0,96613.0,0.3668]
[1736855796084,0.051775,96614.0,96613.0,0.006]
[1736855796287,0.051775,96614.0,96613.0,0.3668]
[1736855803091,0.051775,96614.0,96613.0,0.006]
[1736855803288,0.051775,96614.0,96613.0,0.3668]
[1736855804989,0.1016,96624.0,96613.0,0.3668]
[1736855805288,0.051775,96614.0,96613.0,0.3668]
[1736855805876,0.051775,96614.0,96613.0,0.006]
[1736855806085,0.051775,96614.0,96613.0,0.3668]
[1736855807879,0.051775,96614.0,96613.0,0.3648]
[1736855808090,0.051775,96614.0,96613.0,0.3668]
[1736855810285,0.10464545,96614.0,96613.0,0.3668]
[1736855811288,0.10464545,96614.0,96613.0,0.006]
[1736855811586,0.10464545,96614.0,96613.0,0.3668]
[1736855811989,0.10464545,96614.0,96613.0,0.006]
[1736855812191,0.10464545,96614.0,96613.0,0.3668]
[1736855815596,0.10464545,96614.0,96613.0,0.006]
[1736855816393,0.051779,96607.0,96606.0,0.18595754]
[1736855816594,0.412579,96607.0,96606.0,0.18395754]
[1736855816791,0.051782,96601.0,96585.0,0.5805]
[1736855818395,0.051782,96601.0,96600.0,0.108]
[1736855819897,0.10324312,96601.0,96600.0,0.113]
[1736855824205,0.05146112,96601.0,96600.0,0.113]
[1736855824398,0.051776,96613.0,96600.0,0.4748]
[1736855824596,0.051773,96619.0,96601.0,0.1012]
[1736855824797,0.06755454,96620.0,96601.0,0.1012]
[1736855824998,0.42835454,96620.0,96601.0,0.152982]
[1736855825603,0.42835454,96620.0,96603.0,0.051781]
[1736855825996,0.42835454,96620.0,96601.0,0.1012]
[1736855826194,0.06755454,96613.0,96601.0,0.1012]
[1736855826406,0.06755454,96613.0,96601.0,0.1062]
[1736855827401,0.10300224,96611.0,96601.0,0.1062]
[1736855827903,0.051774,96616.0,96601.0,0.1062]
[1736855828097,0.051774,96616.0,96601.0,0.165982]
[1736855828403,0.051774,96616.0,96602.0,0.051781]
[1736855829501,0.51611479,96620.0,96602.0,0.051781]
[1736855829700,0.22728755,96620.0,96601.0,0.1092]
[1736855830012,0.06424349,96677.0,96601.0,0.1092]
[1736855830013,0.42890645,96669.0,96619.0,0.051773]
[1736855830205,0.051753,96657.0,96652.0,0.3608]
[1736855830500,0.051752,96658.0,96652.0,0.3608]
[1736855832909,0.051752,96658.0,96652.0,0.3618]
[1736855833103,0.001,96658.0,96652.0,0.3618]
[1736855837010,0.001,96658.0,96653.0,0.051754]
[1736855837203,0.001,96658.0,96654.0,0.051754]
[1736855838922,0.001,96658.0,96654.0,0.052754]
[1736855839218,0.09508911,96668.0,96654.0,0.052754]
[1736855839508,0.14658581,96668.0,96662.0,0.3608]
[1736855840014,0.051747,96667.0,96662.0,0.3608]
[1736855841513,0.051748,96666.0,96662.0,0.3608]
[1736855841711,0.051748,96665.0,96662.0,0.3608]
[1736855842013,0.051749,96663.0,96662.0,0.001]
[1736855843312,0.054749,96663.0,96662.0,0.001]
[1736855843516,0.054749,96663.0,96661.0,0.3608]
[1736855843714,0.054749,96663.0,96662.0,0.001]
[1736855848615,0.415549,96663.0,96662.0,0.001]
[1736855849121,0.054749,96663.0,96662.0,0.001]
[1736855860528,0.15007366,96663.0,96662.0,0.001]
[1736855861343,0.26145712,96663.0,96662.0,0.001]
[1736855862637,0.15007366,96663.0,96662.0,0.001]
[1736855863532,0.054749,96663.0,96662.0,0.001]
[1736855863938,0.10300224,96672.0,96662.0,0.3618]
[1736855864137,0.051749,96663.0,96662.0,0.3618]
[1736855865831,0.054749,96663.0,96662.0,0.3618]
[1736855872339,0.054749,96663.0,96662.0,0.001]
[1736855872535,0.054749,96663.0,96662.0,0.3618]
[1736855876341,0.15006472,96663.0,96662.0,0.3618]
[1736855878248,0.26144179,96663.0,96662.0,0.3618]
[1736855881346,0.15006472,96663.0,96662.0,0.3618]
[1736855882151,0.054749,96663.0,96662.0,0.3618]
[1736855883152,0.15006472,96663.0,96662.0,0.3618]
[1736855886142,0.15006472,96663.0,96662.0,0.001]
[1736855886346,0.15006472,96663.0,96662.0,0.3618]
[1736855891356,0.26144218,96663.0,96662.0,0.3618]
[1736855893949,0.15006472,96663.0,96662.0,0.3618]
[1736855894852,0.054749,96663.0,96662.0,0.3618]
[1736855895850,0.051742,96677.0,96662.0,0.3618]
[1736855896050,0.11926295,96672.0,96671.0,0.3608]
[1736855896359,0.052744,96672.0,96671.0,0.3608]
[1736855897559,0.052744,96672.0,96671.0,0.3618]
[1736855901759,0.21585919,96672.0,96671.0,0.3618]
[1736855905655,0.1044817,96672.0,96671.0,0.3618]
[1736855914055,0.21585941,96672.0,96671.0,0.3618]
[1736855917567,0.21485941,96672.0,96671.0,0.3618]
[1736855920969,0.1034817,96672.0,96671.0,0.3618]
[1736855924575,0.06751895,96681.0,96671.0,0.3618]
[1736855924765,0.06751895,96681.0,96680.0,0.3608]
[1736855924766,0.11925795,96681.0,96680.0,0.3608]
[1736855924967,0.051739,96681.0,96680.0,0.3608]
[1736855925974,0.051739,96681.0,96680.0,0.3698]
[1736855928378,0.1631115,96681.0,96680.0,0.3698]
[1736855928978,0.1631115,96681.0,96680.0,0.3788]
[1736855929479,0.051739,96681.0,96680.0,0.3788]
[1736855931474,0.1631115,96681.0,96680.0,0.3788]
[1736855933378,0.051739,96681.0,96680.0,0.3788]
[1736855936482,0.16311076,96681.0,96680.0,0.3788]
[1736855936982,0.16311076,96681.0,96680.0,0.358]
[1736855944382,0.051739,96681.0,96680.0,0.358]
[1736855946787,0.16311153,96681.0,96680.0,0.358]
[1736855950307,0.051739,96681.0,96680.0,0.358]
[1736855951604,0.051739,96681.0,96680.0,0.33779]
[1736855952304,0.16311153,96681.0,96680.0,0.33779]
[1736855956106,0.16311153,96681.0,96680.0,0.31154]
[1736855962003,0.16311153,96681.0,96680.0,0.28534]
[1736855963108,0.16311153,96681.0,96671.0,0.3608]
[1736855963406,0.16311153,96681.0,96621.0,0.3090137]
[1736855963407,0.051753,96655.0,96645.0,0.33995492]
[1736855963608,0.051758,96646.0,96645.0,0.33995492]
[1736855963805,0.051758,96646.0,96645.0,0.33249629]
[1736855965210,0.051758,96646.0,96645.0,0.33349629]
[1736855965808,0.16916391,96646.0,96645.0,0.33349629]
[1736855967613,0.057758,96646.0,96645.0,0.33349629]
[1736855968005,0.058758,96646.0,96645.0,0.33349629]
[1736855985728,0.17015957,96646.0,96645.0,0.29320638]
[1736855985927,0.17015957,96646.0,96645.0,0.26886639]
[1736855986730,0.058758,96646.0,96645.0,0.26886639]
[1736855994536,0.058758,96646.0,96645.0,0.001]
[1736855998339,0.419558,96646.0,96645.0,0.001]
[1736855998534,0.419558,96646.0,96642.0,0.04203]
[1736855998733,0.05176,96642.0,96641.0,0.0537]
[1736856000636,0.05176,96642.0,96641.0,0.0547]
[1736856002039,0.09552676,96642.0,96641.0,0.0547]
[1736856002936,0.04376676,96642.0,96641.0,0.0547]
[1736856003141,0.006,96646.0,96641.0,0.0557]
[1736856003354,0.006,96646.0,96642.0,0.4157]
[1736856003541,0.051738,96684.0,96648.0,0.1350379]
[1736856003743,0.051736,96687.0,96665.0,0.051748]
[1736856003950,0.051736,96687.0,96681.0,0.3608]
[1736856004244,0.051737,96686.0,96681.0,0.3608]
[1736856004444,0.60085565,96693.0,96681.0,0.3608]
[1736856004445,0.051736,96688.0,96681.0,0.3608]
[1736856004633,0.06751895,96691.0,96681.0,0.3608]
[1736856004836,0.051738,96684.0,96682.0,0.001]
[1736856005036,0.60085565,96693.0,96682.0,0.001]
[1736856005234,0.00038046,117640.0,96682.0,0.001]
[1736856005235,0.4952635,96702.0,96691.0,0.3608]
[1736856005433,0.051724,96711.0,96701.0,0.3608]
[1736856005637,0.06751895,96720.0,96701.0,0.3608]
[1736856005832,0.06751895,96711.0,96692.0,0.057]
[1736856006038,0.051733,96693.0,96691.0,0.3608]
[1736856006433,0.3608,96705.0,96691.0,0.3608]
[1736856006434,0.05173,96699.0,96691.0,0.3608]
[1736856006748,0.051724,96710.0,96692.0,0.057]
[1736856007045,0.051724,96710.0,96709.0,0.3608]
[1736856007540,0.051721,96716.0,96709.0,0.6608]
[1736856007746,0.3608,96727.0,96709.0,0.6618]
[1736856007934,0.04356736,96727.0,96718.0,0.3608]
[1736856008137,0.051713,96731.0,96726.0,0.3608]
[1736856008337,0.3608,96739.0,96726.0,0.3608]
[1736856008539,0.3608,96739.0,96727.0,0.001]
[1736856008747,0.3608,96739.0,96729.0,0.10278458]
[1736856008938,0.3608,96762.0,96734.0,0.3608]
[1736856009145,0.3608,96762.0,96726.0,0.3608]
[1736856009146,0.04312364,96762.0,96759.0,0.3608]
[1736856009345,0.10278458,96770.0,96759.0,0.3608]
[1736856009550,0.10278458,96780.0,96759.0,0.3608]
[1736856009739,0.05169,96775.0,96770.0,0.10278458]
[1736856009940,0.051682,96789.0,96770.0,0.10278458]
[1736856010135,0.3608,96795.0,96783.0,0.3608]
[1736856010336,0.3588,96795.0,96785.0,0.10278458]
[1736856010648,0.40251962,96795.0,96771.0,0.001]
[1736856010838,0.05169,96773.0,96771.0,0.001]
[1736856011040,0.048691,96771.0,96770.0,0.37108]
[1736856011346,0.051691,96772.0,96770.0,0.009]
[1736856011553,0.051696,96762.0,96761.0,0.3608]
[1736856011847,0.051699,96756.0,96730.0,0.10278458]
[1736856012043,0.3608,96762.0,96749.0,0.3608]
[1736856012348,0.3608,96775.0,96761.0,0.3608]
[1736856012544,0.005,96771.0,96765.0,0.10278458]
[1736856013048,0.005,96771.0,96765.0,0.40278458]
[1736856013249,0.3608,96775.0,96765.0,0.40278458]
[1736856013250,0.051685,96784.0,96770.0,0.3608]
[1736856013644,0.051685,96784.0,96771.0,0.001]
[1736856013837,0.009,96775.0,96771.0,0.001]
[1736856014039,0.051685,96784.0,96771.0,0.301]
[1736856014239,0.3608,96789.0,96771.0,0.001]
[1736856014438,0.051687,96780.0,96771.0,0.001]
[1736856014649,0.051688,96777.0,96771.0,0.001]
[1736856015039,0.46358458,96781.0,96771.0,0.001]
[1736856015347,0.46358458,96781.0,96765.0,0.001]
[1736856015348,0.051694,96766.0,96765.0,0.001]
[1736856015551,0.412494,96766.0,96765.0,0.001]
[1736856015945,0.412494,96766.0,96730.0,0.0524]
[1736856015946,0.3608,96766.0,96730.0,0.0524]
[1736856016144,0.051716,96724.0,96722.0,0.00128]
[1736856016444,0.3608,96724.0,96723.0,0.001]
[1736856016644,0.412516,96724.0,96723.0,0.001]
[1736856016950,0.412516,96724.0,96703.0,0.0524]
[1736856016951,0.051723,96713.0,96711.0,0.001]
[1736856017245,0.3608,96724.0,96703.0,0.0524]
[1736856017246,0.3608,96712.0,96703.0,0.0524]
[1736856017447,0.051725,96709.0,96704.0,0.001]
[1736856017954,0.051725,96709.0,96708.0,0.3608]
[1736856018242,0.051725,96709.0,96708.0,0.3618]
[1736856018449,0.051725,96709.0,96708.0,0.6618]
[1736856019040,0.3628,96724.0,96708.0,0.6618]
[1736856019352,0.3628,96724.0,96711.0,0.003]
[1736856019353,0.051723,96712.0,96711.0,0.003]
[1736856019745,0.051723,96712.0,96711.0,0.004]
[1736856019945,0.051723,96712.0,96711.0,0.001]
[1736856021043,0.051723,96712.0,96711.0,0.301]
[1736856021250,0.3608,96733.0,96711.0,0.304]
[1736856021553,0.051722,96713.0,96711.0,0.005]
[1736856022052,0.051722,96713.0,96711.0,0.305]
[1736856022452,0.051722,96713.0,96711.0,0.005]
[1736856022854,0.051722,96713.0,96711.0,0.002]
[1736856023154,0.051722,96713.0,96711.0,0.005]
[1736856024251,0.051722,96713.0,96711.0,0.004]
[1736856024447,0.051722,96713.0,96711.0,0.005]
[1736856025142,0.3608,96725.0,96711.0,0.005]
[1736856025343,0.051722,96713.0,96711.0,0.005]
[1736856026751,0.3608,96725.0,96711.0,0.005]
[1736856027152,0.3608,96725.0,96711.0,0.004]
[1736856027348,0.3608,96725.0,96711.0,0.005]
[1736856027751,0.051722,96713.0,96711.0,0.005]
[1736856028655,0.3608,96725.0,96711.0,0.005]
[1736856028656,0.051719,96719.0,96711.0,0.005]
[1736856028957,0.3608,96725.0,96712.0,0.051722]
[1736856028958,0.05172,96717.0,96712.0,0.051722]
[1736856029460,0.05172,96717.0,96713.0,0.001]
[1736856030959,0.3608,96725.0,96713.0,0.001]
[1736856030960,0.051722,96714.0,96713.0,0.001]
[1736856031357,0.051722,96714.0,96712.0,0.001]
[1736856031654,0.051722,96714.0,96713.0,0.001]
[1736856032054,0.051722,96714.0,96713.0,0.003]
[1736856032755,0.05172,96717.0,96713.0,0.001]
[1736856032961,0.051721,96716.0,96713.0,0.002]
[1736856033361,0.0582,96724.0,96713.0,0.002]
[1736856033563,0.051721,96715.0,96713.0,0.003]
[1736856033959,0.051721,96715.0,96713.0,0.002]
[1736856034262,0.051719,96719.0,96714.0,0.47295497]
[1736856034450,0.051719,96719.0,96714.0,0.52567697]
[1736856034655,0.051721,96715.0,96714.0,0.47395497]
[1736856035462,0.051718,96721.0,96714.0,0.47395497]
[1736856035658,0.051719,96720.0,96716.0,0.05172]
[1736856035858,0.05172,96718.0,96716.0,0.05172]
[1736856036052,0.05172,96718.0,96717.0,0.001]
[1736856036259,0.0582,96724.0,96717.0,0.001]
[1736856036557,0.0582,96724.0,96717.0,0.47395497]
[1736856036760,0.051719,96719.0,96717.0,0.47395497]
[1736856036958,0.05172,96718.0,96717.0,0.47295497]
[1736856037461,0.05172,96718.0,96716.0,0.37081645]
[1736856037661,0.05172,96718.0,96717.0,0.001]
[1736856038053,0.05172,96717.0,96716.0,0.37313645]
[1736856038258,0.10892,96717.0,96716.0,0.37181645]
[1736856039462,0.10892,96717.0,96716.0,0.47395604]
[1736856041563,0.10892,96717.0,96716.0,0.001]
[1736856041966,0.051721,96716.0,96715.0,0.001]
[1736856042167,0.0572,96717.0,96712.0,0.001]
[1736856042365,0.051722,96714.0,96712.0,0.001]
[1736856043166,0.412522,96713.0,96712.0,0.001]
[1736856043370,0.051723,96711.0,96710.0,0.21426257]
[1736856043863,0.051727,96705.0,96704.0,0.37081645]
[1736856044266,0.051727,96705.0,96704.0,0.37181645]
[1736856045164,0.051727,96705.0,96704.0,0.008]
[1736856046069,0.051727,96705.0,96704.0,0.48103622]
[1736856047170,0.3608,96740.0,96705.0,0.051727]
[1736856047369,0.058,96739.0,96723.0,0.051717]
[1736856047558,0.051717,96723.0,96718.0,0.051719]
[1736856047765,0.051721,96715.0,96714.0,0.73289645]
[1736856047960,0.051721,96715.0,96714.0,0.37081645]
[1736856048474,0.3608,96719.0,96714.0,1.04876758]
[1736856048970,0.3608,96719.0,96714.0,0.47403622]
[1736856048971,0.051721,96715.0,96714.0,0.47403622]
[1736856051566,0.0582,96724.0,96714.0,0.47403622]
[1736856051866,0.0582,96724.0,96714.0,0.47503622]
[1736856052065,0.0582,96724.0,96722.0,0.051717]
[1736856052465,0.0582,96724.0,96723.0,0.001]
[1736856053090,0.0582,96724.0,96723.0,0.47403622]
[1736856053464,0.0602,96724.0,96723.0,0.47403622]
[1736856054169,0.111916,96724.0,96723.0,0.47303622]
[1736856054374,0.051719,96720.0,96719.0,0.00128]
[1736856054574,0.051719,96720.0,96715.0,0.37252437]
[1736856054875,0.051719,96720.0,96716.0,0.001]
[1736856055673,0.3608,96717.0,96712.0,0.052723]
[1736856055880,0.0588,96716.0,96713.0,0.001]
[1736856056975,0.0588,96716.0,96710.0,0.10278458]
[1736856057178,0.0588,96716.0,96712.0,0.18559897]
[1736856057476,0.051722,96713.0,96712.0,0.18559897]
[1736856057870,0.051722,96713.0,96712.0,0.18659897]
[1736856058276,0.051722,96713.0,96712.0,0.001]
[1736856058464,0.051723,96712.0,96711.0,0.18559897]
[1736856059263,0.051722,96713.0,96697.0,0.54639897]
[1736856059470,0.05173,96699.0,96697.0,0.54639897]
[1736856059666,0.05173,96699.0,96698.0,0.001]
[1736856062073,0.05173,96699.0,96698.0,0.009]
[1736856063276,0.05173,96699.0,96698.0,0.06073]
[1736856063568,0.051729,96704.0,96703.0,0.051727]
[1736856064077,0.051729,96704.0,96703.0,0.052727]
[1736856064668,0.051729,96704.0,96703.0,0.001]
[1736856064868,0.051729,96704.0,96703.0,0.003]
[1736856065370,0.051729,96704.0,96703.0,0.002]
[1736856065772,0.051729,96704.0,96703.0,0.009]
[1736856069778,0.051729,96704.0,96703.0,0.008]
[1736856070571,0.412529,96704.0,96703.0,0.008]
[1736856072073,0.412529,96704.0,96691.0,0.00155109]
[1736856072074,0.051734,96692.0,96691.0,0.00155109]
[1736856072272,0.412534,96692.0,96691.0,0.00155109]
[1736856072873,0.3608,96692.0,96675.0,0.18559897]
[1736856073078,0.412542,96676.0,96675.0,0.18559897]
[1736856073476,0.412542,96676.0,96655.0,0.00155169]
[1736856073675,0.10278458,96670.0,96655.0,0.00155169]
[1736856073877,0.051751,96660.0,96655.0,0.00155169]
[1736856074279,0.051751,96660.0,96659.0,0.3618]
[1736856074476,0.051751,96660.0,96659.0,0.3608]
[1736856074877,0.051751,96660.0,96659.0,0.3638]
[1736856075976,0.051751,96660.0,96659.0,0.3628]
[1736856077182,0.05119362,96666.0,96659.0,0.3628]
[1736856077379,0.1208,96669.0,96659.0,0.3628]
[1736856077575,0.051749,96663.0,96659.0,0.3628]
[1736856080085,0.17345363,96669.0,96659.0,0.3618]
[1736856080287,0.05175,96662.0,96659.0,0.3628]
[1736856080678,0.17345363,96669.0,96660.0,0.001]
[1736856080884,0.051747,96667.0,96660.0,0.001]
[1736856081682,0.051748,96666.0,96660.0,0.001]
[1736856083388,0.051748,96666.0,96660.0,0.002]
[1736856083788,0.17345363,96669.0,96660.0,0.002]
[1736856084683,0.17345363,96669.0,96660.0,0.003]
[1736856085184,0.22519963,96669.0,96660.0,0.003]
[1736856085379,0.051746,96668.0,96660.0,0.003]
[1736856087381,0.051746,96668.0,96660.0,0.002]
[1736856087687,0.051747,96667.0,96660.0,0.003]
[1736856088793,0.051748,96666.0,96660.0,0.003]
[1736856088992,0.051748,96666.0,96660.0,0.002]
[1736856089196,0.051748,96666.0,96660.0,0.003]
[1736856090386,0.051748,96666.0,96660.0,0.002]
[1736856090586,0.051748,96666.0,96660.0,0.003]
[1736856091285,0.051748,96666.0,96660.0,0.002]
[1736856091479,0.051748,96666.0,96660.0,0.003]
[1736856091694,0.17345363,96669.0,96660.0,0.003]
[1736856092581,0.051749,96664.0,96660.0,0.003]
[1736856092789,0.051749,96664.0,96660.0,0.002]
[1736856092998,0.051749,96664.0,96660.0,0.003]
[1736856093989,0.05175,96661.0,96660.0,0.003]
[1736856094193,0.05175,96661.0,96660.0,0.002]
[1736856094393,0.41255,96661.0,96660.0,0.002]
[1736856097696,0.051758,96646.0,96638.0,0.3608]
[1736856097896,0.051758,96646.0,96638.0,0.36208]
[1736856098192,0.051758,96646.0,96638.0,0.3608]
[1736856099491,0.051758,96646.0,96645.0,0.003]
[1736856100001,0.180158,96646.0,96645.0,0.003]
[1736856100395,0.181158,96646.0,96645.0,0.01]
[1736856100792,0.181158,96646.0,96627.0,0.0586]
[1736856100793,0.051763,96638.0,96627.0,0.0586]
[1736856100991,0.3608,96636.0,96627.0,0.0586]
[1736856101300,0.3608,96636.0,96633.0,0.001]
[1736856102199,0.412564,96636.0,96633.0,0.001]
[1736856102402,0.051765,96634.0,96633.0,0.001]
[1736856103598,0.051765,96634.0,96633.0,0.01]
[1736856103901,0.051765,96634.0,96633.0,0.015]
[1736856104090,0.052765,96634.0,96633.0,0.015]
[1736856106999,0.052765,96634.0,96633.0,0.014]
[1736856107402,0.052765,96634.0,96619.0,0.051772]
[1736856107403,0.3608,96628.0,96600.0,0.1]
[1736856107597,0.3440348,96634.0,96560.0,0.1926]
[1736856107598,0.3608,96603.0,96560.0,0.1926]
[1736856107799,0.773391,96584.0,96583.0,0.07236359]
[1736856108393,0.051795,96577.0,96560.0,0.1926]
[1736856108602,0.55676,96592.0,96560.0,0.1926]
[1736856108603,0.3608,96561.0,96560.0,0.1926]
[1736856108897,0.3608,96561.0,96539.0,0.051815]
[1736856109093,0.3608,96547.0,96540.0,0.1912]
[1736856109293,0.3608,96547.0,96540.0,0.1922]
[1736856109506,0.3608,96547.0,96540.0,0.1912]
[1736856110003,0.3608,96547.0,96541.0,0.001]
[1736856110403,0.3618,96547.0,96541.0,0.001]
[1736856112497,0.3608,96547.0,96541.0,0.006]
[1736856112698,0.3618,96547.0,96541.0,0.01]
[1736856113117,0.413611,96547.0,96541.0,0.01]
[1736856113802,0.3608,96561.0,96541.0,0.01]
[1736856113803,0.051808,96553.0,96545.0,0.051812]
[1736856114002,0.051808,96553.0,96547.0,0.051811]
[1736856114303,0.051808,96553.0,96548.0,0.001]
[1736856114896,0.3608,96561.0,96548.0,0.001]
[1736856115100,0.15458958,96560.0,96554.0,0.051807]
[1736856115512,0.15458958,96560.0,96555.0,0.001]
[1736856116607,0.15558958,96560.0,96555.0,0.001]
[1736856116807,0.052805,96560.0,96555.0,0.001]
[1736856117008,0.051805,96560.0,96555.0,0.004]
[1736856117211,0.052805,96560.0,96555.0,0.009]
[1736856117411,0.052805,96560.0,96555.0,0.008]
[1736856117711,0.052805,96560.0,96556.0,0.001]
[1736856118308,0.001,96560.0,96556.0,0.001]
[1736856118898,0.001,96560.0,96556.0,0.003]
[1736856119098,0.412604,96561.0,96556.0,0.003]
[1736856119303,0.001,96560.0,96556.0,0.008]
[1736856120409,0.413604,96561.0,96556.0,0.008]
[1736856120809,0.001,96560.0,96556.0,0.008]
[1736856121010,0.052804,96560.0,96556.0,0.008]
[1736856122222,0.051805,96558.0,96556.0,0.008]
[1736856122921,0.051806,96557.0,96556.0,0.008]
[1736856125624,0.051806,96557.0,96556.0,0.003]
[1736856125829,0.052806,96557.0,96556.0,0.008]
[1736856126727,0.03657368,96578.0,96560.0,0.051804]
[1736856127024,0.3608,96571.0,96561.0,0.001]
[1736856127224,0.051801,96566.0,96561.0,0.001]
[1736856127923,0.051799,96570.0,96561.0,0.001]
[1736856128123,0.051803,96563.0,96560.0,0.002]
[1736856128523,0.0518,96568.0,96561.0,0.001]
[1736856128726,0.3608,96571.0,96561.0,0.001]
[1736856128727,0.051802,96565.0,96561.0,0.003]
[1736856129121,0.051802,96564.0,96561.0,0.002]
[1736856129327,0.051803,96563.0,96561.0,0.002]
[1736856129633,0.051803,96563.0,96562.0,0.001]
[1736856129822,0.051803,96564.0,96562.0,0.001]
[1736856130230,0.051803,96564.0,96563.0,0.0604]
[1736856130535,0.051803,96564.0,96563.0,0.0614]
[1736856132037,0.3608,96571.0,96563.0,0.0614]
[1736856132225,0.3608,96571.0,96566.0,0.051801]
[1736856132433,0.412599,96571.0,96566.0,0.051801]
[1736856132634,0.412599,96571.0,96567.0,0.001]
[1736856132831,0.412599,96571.0,96567.0,0.0528]
[1736856133038,0.412599,96571.0,96568.0,0.0518]
[1736856133339,0.412599,96571.0,96569.0,0.001]
[1736856134533,0.3608,96571.0,96569.0,0.002]
[1736856134739,0.3608,96571.0,96570.0,0.051799]
[1736856135134,0.3608,96571.0,96570.0,0.052799]
[1736856138039,0.3608,96571.0,96555.0,0.36208]
[1736856138339,0.3608,96571.0,96544.0,0.3701]
[1736856138340,0.3608,96556.0,96544.0,0.3701]
[1736856138541,0.3608,96556.0,96540.0,0.10278458]
[1736856138542,0.3608,96545.0,96540.0,0.10278458]
[1736856138736,0.3608,96545.0,96540.0,0.15459958]
[1736856139037,0.3608,96545.0,96541.0,0.001]
[1736856139236,0.3608,96545.0,96544.0,0.051813]
[1736856139432,0.3608,96556.0,96542.0,0.3608]